Workbook

Sheet RÉCAPITULATIF DU REPORTING
E1: Dépenses détaillées
B2: NPAI FLASH | D2: suivi des Npai
B3: INFORMATIONS SUR LE PROJET | E3: 2020
B4: Nom du Reporting | D4: Reporting NPAI
B5: Description du Reporting | D5: Gestion des NPAI arrivant sur site
B6: Année | D6: =YEAR(TODAY()) -> 2022
B7: Mois | D7: Juillet
B9: CHIFFRES
B10: au mois
B11: Npai Flashé au Mois | C11: =VLOOKUP(D7,INDIRECT("'"&E3&"'!B4:C16"),2,FALSE) -> 0
B12: N° de Carton Début du Mois | C12: =VLOOKUP(D7,INDIRECT("'"&E3&"'!B4:D16"),3,FALSE) -> 837
B13: N° de Carton Fin du Mois | C13: =VLOOKUP(D7,INDIRECT("'"&E3&"'!B4:E16"),4,FALSE) -> 837
B14: Nombre de Carton au Mois | C14: =VLOOKUP(D7,INDIRECT("'"&E3&"'!B4:F16"),5,FALSE) -> 0
B15: à l'année
B16: Npai Flashé à L'Année | C16: =INDIRECT("'"&E3&"'!C17") -> 56085
B17: N° de Carton Début de L'Année | C17: =INDIRECT("'"&E3&"'!D4") -> 739
B18: N° de Carton Fin de L'Année | C18: =INDIRECT("'"&E3&"'!E15") -> 879
B19: Nombre de Carton à L'Année | C19: =INDIRECT("'"&E3&"'!F17") -> 140
B20: Mois le plus important | C20: =MAX(source!E6:E17) -> 16069 | D20: =_xlfn.XLOOKUP(C20,source!E6:E17,source!D6:D17,0) -> Juin
B21: Mois le moins important | C21: =MIN(source!E6:E17) -> 0 | D21: =_xlfn.XLOOKUP(C21,source!E6:E17,source!D6:D17,0) -> Avril
B22: les 4 dernières années
B23: 2019 | C23: ='2019'!C17 -> 45398
B24: 2020 | C24: ='2020'!C17 -> 56085
B25: 2021 | C25: ='2021'!C17 -> 33022
B26: 2022 | C26: ='2022'!C17 -> 24472
B27: Nombre Total de NPAI | C27: =SUM('2022:2009'!C17) -> 531636
B28: soit en moyenne / année | C28: =source!B21 -> 37974

Sheet 2022
G2: =MID(CELL("nomfichier",B1),FIND("]",CELL("nomfichier",B1))+1,LEN(CELL("nomfichier",B1))-FIND("]",CELL("nomfichier",B1))) -> 2022
B3: Mois | C3: Npai Flashé | D3: N° de Carton de Début | E3: N° de Carton de Fin | F3: Total
B4: Janvier | C4: 8605 | D4: 946 | E4: 963 | F4: =MAX(0,E4-D4) -> 17
B5: Février | C5: 0 | D5: =E4 -> 963 | E5: 963 | F5: =MAX(0,E5-D5) -> 0
B6: Mars | C6: 1369 | D6: 963 | E6: 965 | F6: =MAX(0,E6-D6) -> 2
B7: Avril | C7: 4 | D7: 965 | E7: 965 | F7: =MAX(0,E7-D7) -> 0
B8: Mai | C8: 187 | D8: =E7 -> 965 | E8: 965 | F8: 0
B9: Juin | C9: 10641 | D9: 965 | E9: 989 | F9: 24
B10: Juillet | C10: 107 | D10: 989 | E10: 989 | F10: 0
B11: Août | C11: 0 | D11: 989 | E11: 989 | F11: 0
B12: Septembre | C12: 0 | D12: 989 | E12: 989 | F12: 0
B13: Octobre | C13: 3559 | D13: 989 | E13: 998 | F13: 9
B14: Novembre | D14: 998 | F14: 0
B15: Décembre | D15: 0 | F15: 0
B17: Total | C17: =SUM(C4:C15) -> 24472 | D17: =D4 -> 946 | E17: =E15 -> 0 | F17: =SUM(F4:F15) -> 52

Sheet 2021
G2: =MID(CELL("nomfichier",B1),FIND("]",CELL("nomfichier",B1))+1,LEN(CELL("nomfichier",B1))-FIND("]",CELL("nomfichier",B1))) -> 2021
B3: Mois | C3: Npai Flashé | D3: N° de Carton de Début | E3: N° de Carton de Fin | F3: Total
B4: Janvier | C4: 9347 | D4: 879 | E4: 897 | F4: =E4-D4 -> 18
B5: Février | C5: 506 | D5: =E4 -> 897 | E5: 898 | F5: =E5-D5 -> 1
B6: Mars | C6: 354 | D6: 898 | E6: 899 | F6: =E6-D6 -> 1
B7: Avril | C7: 398 | D7: 899 | E7: 900 | F7: =E7-D7 -> 1
B8: Mai | C8: 901 | D8: 900 | E8: 902 | F8: =E8-D8 -> 2
B9: Juin | C9: 0 | D9: 902 | E9: 902 | F9: 0
B10: Juillet | C10: 10155 | D10: 902 | E10: 921 | F10: 19
B11: Août | C11: 31 | D11: 921 | E11: 921 | F11: 0
B12: Septembre | C12: 0 | D12: 921 | E12: 921 | F12: 0
B13: Octobre | C13: 3 | D13: 921 | E13: 921 | F13: 0
B14: Novembre | C14: 0 | D14: 921 | E14: 921 | F14: 0
B15: Décembre | C15: 11327 | D15: 921 | E15: 946 | F15: 25
B17: Total | C17: =SUM(C4:C15) -> 33022 | D17: =D4 -> 879 | E17: =E15 -> 946 | F17: =SUM(F4:F15) -> 67

Sheet 2020
G2: =MID(CELL("nomfichier",B1),FIND("]",CELL("nomfichier",B1))+1,LEN(CELL("nomfichier",B1))-FIND("]",CELL("nomfichier",B1))) -> 2020
B3: Mois | C3: Npai Flashé | D3: N° de Carton de Début | E3: N° de Carton de Fin | F3: Total
B4: Janvier | C4: 8544 | D4: 739 | E4: 760 | F4: =E4-D4 -> 21
B5: Février | C5: 10240 | D5: =E4 -> 760 | E5: 786 | F5: =E5-D5 -> 26
B6: Mars | C6: 2002 | D6: 786 | E6: 792 | F6: =E6-D6 -> 6
B7: Avril | C7: 0 | D7: 792 | E7: 792 | F7: =E7-D7 -> 0
B8: Mai | C8: 682 | D8: 792 | E8: 794 | F8: =E8-D8 -> 2
B9: Juin | C9: 16069 | D9: 794 | E9: 837 | F9: 43
B10: Juillet | C10: 0 | D10: 837 | E10: 837 | F10: 0
B11: Août | C11: 2 | D11: 837 | E11: 837 | F11: 0
B12: Septembre | C12: 0 | D12: 837 | E12: 837 | F12: 0
B13: Octobre | C13: 1819 | D13: 837 | E13: 842 | F13: 5
B14: Novembre | C14: 10264 | D14: 842 | E14: 865 | F14: 23
B15: Décembre | C15: 6463 | D15: 865 | E15: 879 | F15: 14
B17: Total | C17: =SUM(C4:C15) -> 56085 | D17: =D4 -> 739 | E17: =E15 -> 879 | F17: =SUM(F4:F15) -> 140

Sheet 2019
G2: =MID(CELL("nomfichier",B1),FIND("]",CELL("nomfichier",B1))+1,LEN(CELL("nomfichier",B1))-FIND("]",CELL("nomfichier",B1))) -> 2019
B3: Mois | C3: Npai Flashé | D3: N° de Carton de Début | E3: N° de Carton de Fin | F3: Total
B4: Janvier | C4: 5188 | D4: 664 | E4: 675 | F4: =E4-D4 -> 11
B5: Février | C5: 6279 | D5: =E4 -> 675 | E5: 688 | F5: =E5-D5 -> 13
B6: Mars | C6: 70 | D6: 688 | E6: 689 | F6: =E6-D6 -> 1
B7: Avril | C7: 2670 | D7: 689 | E7: 693 | F7: =E7-D7 -> 4
B8: Mai | C8: 5245 | D8: 693 | E8: 701 | F8: =E8-D8 -> 8
B9: Juin | C9: 14104 | D9: 701 | E9: 722 | F9: 21
B10: Juillet | C10: 3546 | D10: 722 | E10: 727 | F10: 5
B11: Août | C11: 7371 | D11: 727 | E11: 738 | F11: 11
B12: Septembre | C12: 107 | D12: 738 | E12: 738 | F12: 0
B13: Octobre | C13: 288 | D13: 738 | E13: 738 | F13: 0
B14: Novembre | C14: 530 | D14: 738 | E14: 739 | F14: 1
B15: Décembre | C15: 0 | D15: 739 | E15: 739 | F15: 0
B17: Total | C17: =SUM(C4:C15) -> 45398 | D17: =D4 -> 664 | E17: =E15 -> 739 | F17: =SUM(F4:F15) -> 75

Sheet 2018
G2: =MID(CELL("nomfichier",B1),FIND("]",CELL("nomfichier",B1))+1,LEN(CELL("nomfichier",B1))-FIND("]",CELL("nomfichier",B1))) -> 2018
B3: Mois | C3: Npai Flashé | D3: N° de Carton de Début | E3: N° de Carton de Fin | F3: Total
B4: Janvier | C4: 0 | D4: 579 | E4: 579 | F4: =E4-D4 -> 0
B5: Février | C5: 11534 | D5: =E4 -> 579 | E5: 608 | F5: =E5-D5 -> 29
B6: Mars | C6: 622 | D6: 608 | E6: 610 | F6: =E6-D6 -> 2
B7: Avril | C7: 105 | D7: 610 | E7: 610 | F7: =E7-D7 -> 0
B8: Mai | C8: 8564 | D8: 610 | E8: 625 | F8: =E8-D8 -> 15
B9: Juin | C9: 7992 | D9: 625 | E9: 641 | F9: 16
B10: Juillet | C10: 9673 | D10: 641 | E10: 658 | F10: 17 | K10: 4
B11: Août | C11: 1790 | D11: 658 | E11: 660 | F11: 2
B12: Septembre | C12: 2265 | D12: 660 | E12: 661 | F12: 1
B13: Octobre | C13: 663 | D13: 661 | E13: 663 | F13: 2
B14: Novembre | C14: 0 | D14: 663 | E14: 663 | F14: 0
B15: Décembre | C15: 1529 | D15: 663 | E15: 664 | F15: 1
B17: Total | C17: =SUM(C4:C15) -> 44737 | D17: =D4 -> 579 | E17: =E15 -> 664 | F17: =SUM(F4:F15) -> 85

Sheet 2017
G2: =MID(CELL("nomfichier",B1),FIND("]",CELL("nomfichier",B1))+1,LEN(CELL("nomfichier",B1))-FIND("]",CELL("nomfichier",B1))) -> 2017
B3: Mois | C3: Npai Flashé | D3: N° de Carton de Début | E3: N° de Carton de Fin | F3: Total
B4: Janvier | C4: 128 | D4: 525 | E4: 525 | F4: =E4-D4 -> 0
B5: Février | C5: 7150 | D5: =E4 -> 525 | E5: 543 | F5: =E5-D5 -> 18
B6: Mars | C6: 2151 | D6: 543 | E6: 547 | F6: =E6-D6 -> 4
B7: Avril | C7: 543 | D7: 547 | E7: 548 | F7: =E7-D7 -> 1
B8: Mai | C8: 7516 | D8: 548 | E8: 564 | F8: =E8-D8 -> 16
B9: Juin | C9: 5524 | D9: 564 | E9: 575 | F9: 11
B10: Juillet | C10: 709 | D10: 575 | E10: 575 | F10: 0
B11: Août | C11: 685 | D11: 575 | E11: 577 | F11: 2
B12: Septembre | C12: 14 | D12: 577 | E12: 577 | F12: 0
B13: Octobre | C13: 246 | D13: 577 | E13: 577 | F13: 0
B14: Novembre | C14: 198 | D14: 577 | E14: 578 | F14: 1
B15: Décembre | C15: 701 | D15: 578 | E15: 579 | F15: 1
B17: Total | C17: =SUM(C4:C15) -> 25565 | D17: =D4 -> 525 | E17: =E15 -> 579 | F17: =SUM(F4:F15) -> 54

Sheet 2016
G2: =MID(CELL("nomfichier",B1),FIND("]",CELL("nomfichier",B1))+1,LEN(CELL("nomfichier",B1))-FIND("]",CELL("nomfichier",B1))) -> 2016
B3: Mois | C3: Npai Flashé | D3: N° de Carton de Début | E3: N° de Carton de Fin | F3: Total
B4: Janvier | C4: 8609 | D4: 461 | E4: 483 | F4: =E4-D4 -> 22
B5: Février | C5: 1299 | D5: =E4 -> 483 | E5: 486 | F5: =E5-D5 -> 3
B6: Mars | C6: 338 | D6: 486 | E6: 487 | F6: =E6-D6 -> 1
B7: Avril | C7: 404 | D7: 487 | E7: 488 | F7: =E7-D7 -> 1
B8: Mai | C8: 11716 | D8: 488 | E8: 513 | F8: =E8-D8 -> 25
B9: Juin | C9: 2943 | D9: 513 | E9: 520 | F9: 7
B10: Juillet | C10: 318 | D10: 520 | E10: 521 | F10: 1
B11: Août | C11: 80 | D11: 521 | E11: 521 | F11: 0
B12: Septembre | C12: 0 | D12: 521 | E12: 521 | F12: 0
B13: Octobre | C13: 148 | D13: 521 | E13: 521 | F13: 0
B14: Novembre | C14: 29 | D14: 521 | E14: 521 | F14: 0
B15: Décembre | C15: 1604 | D15: 521 | E15: 525 | F15: 4
B17: Total | C17: =SUM(C4:C15) -> 27488 | D17: =D4 -> 461 | E17: =E15 -> 525 | F17: =SUM(F4:F15) -> 64

Sheet 2015
G2: =MID(CELL("nomfichier",B1),FIND("]",CELL("nomfichier",B1))+1,LEN(CELL("nomfichier",B1))-FIND("]",CELL("nomfichier",B1))) -> 2015
B3: Mois | C3: Npai Flashé | D3: N° de Carton de Début | E3: N° de Carton de Fin | F3: Total
B4: Janvier | C4: 4614 | D4: 422 | E4: 437 | F4: =E4-D4 -> 15
B5: Février | C5: 736 | D5: =E4 -> 437 | E5: 439 | F5: =E5-D5 -> 2
B6: Mars | C6: 98 | D6: 439 | E6: 439 | F6: =E6-D6 -> 0
B7: Avril | C7: 0 | D7: 439 | E7: 439 | F7: =E7-D7 -> 0
B8: Mai | C8: 3539 | D8: 439 | E8: 445 | F8: =E8-D8 -> 6
B9: Juin | C9: 6362 | D9: 445 | E9: 457 | F9: 12
B10: Juillet | C10: 100 | D10: 457 | E10: 457 | F10: 0
B11: Août | C11: 747 | D11: 457 | E11: 458 | F11: 1
B12: Septembre | C12: 0 | D12: 458 | E12: 458 | F12: 0
B13: Octobre | C13: 460 | D13: 458 | E13: 459 | F13: 1
B14: Novembre | C14: 19 | D14: 459 | E14: 459 | F14: 0
B15: Décembre | C15: 555 | D15: 459 | E15: 460 | F15: 1
B17: Total | C17: =SUM(C4:C15) -> 17230 | D17: =D4 -> 422 | E17: =E15 -> 460 | F17: =SUM(F4:F15) -> 38

Sheet 2014
G2: =MID(CELL("nomfichier",B1),FIND("]",CELL("nomfichier",B1))+1,LEN(CELL("nomfichier",B1))-FIND("]",CELL("nomfichier",B1))) -> 2014
B3: Mois | C3: Npai Flashé | D3: N° de Carton de Début | E3: N° de Carton de Fin | F3: Total
B4: Janvier | C4: 0 | D4: 345 | E4: 345 | F4: =E4-D4 -> 0
B5: Février | C5: 3622 | D5: =E4 -> 345 | E5: 350 | F5: =E5-D5 -> 5
B6: Mars | C6: 3658 | D6: 350 | E6: 357 | F6: =E6-D6 -> 7
B7: Avril | C7: 256 | D7: 357 | E7: 357 | F7: =E7-D7 -> 0
B8: Mai | C8: 5 | D8: 357 | E8: 357 | F8: =E8-D8 -> 0
B9: Juin | C9: 4053 | D9: 357 | E9: 366 | F9: 9
B10: Juillet | C10: 12454 | D10: 366 | E10: 393 | F10: 27
B11: Août | C11: 118 | D11: 393 | E11: 393 | F11: 0
B12: Septembre | C12: 131 | D12: 393 | E12: 393 | F12: 0
B13: Octobre | C13: 2466 | D13: 393 | E13: 396 | F13: 3
B14: Novembre | C14: 6114 | D14: 396 | E14: 401 | F14: 5
B15: Décembre | C15: 6225 | D15: 401 | E15: 422 | F15: 21
B17: Total | C17: =SUM(C4:C15) -> 39102 | D17: =D4 -> 345 | E17: =E15 -> 422 | F17: =SUM(F4:F15) -> 77

Sheet 2013
G2: =MID(CELL("nomfichier",B1),FIND("]",CELL("nomfichier",B1))+1,LEN(CELL("nomfichier",B1))-FIND("]",CELL("nomfichier",B1))) -> 2013
B3: Mois | C3: Npai Flashé | D3: N° de Carton de Début | E3: N° de Carton de Fin | F3: Total
B4: Janvier | C4: 1616 | D4: 265 | E4: 267 | F4: =E4-D4 -> 2
B5: Février | C5: 3511 | D5: =E4 -> 267 | E5: 273 | F5: =E5-D5 -> 6
B6: Mars | C6: 1706 | D6: 273 | E6: 276 | F6: =E6-D6 -> 3
B7: Avril | C7: 163 | D7: 276 | E7: 276 | F7: =E7-D7 -> 0
B8: Mai | C8: 2 | D8: 276 | E8: 276 | F8: =E8-D8 -> 0
B9: Juin | C9: 1049 | D9: 276 | E9: 279 | F9: 3
B10: Juillet | C10: 14310 | D10: 279 | E10: 309 | F10: 30
B11: Août | C11: 68 | D11: 309 | E11: 309 | F11: 0
B12: Septembre | C12: 204 | D12: 309 | E12: 310 | F12: 1
B13: Octobre | C13: 14932 | D13: 310 | E13: 343 | F13: 33
B14: Novembre | C14: 432 | D14: 343 | E14: 344 | F14: 1
B15: Décembre | C15: 281 | D15: 344 | E15: 344 | F15: 0
B17: Total | C17: =SUM(C4:C15) -> 38274 | D17: =D4 -> 265 | E17: =E15 -> 344 | F17: =SUM(F4:F15) -> 79

Sheet 2012
G2: =MID(CELL("nomfichier",B1),FIND("]",CELL("nomfichier",B1))+1,LEN(CELL("nomfichier",B1))-FIND("]",CELL("nomfichier",B1))) -> 2012
B3: Mois | C3: Npai Flashé | D3: N° de Carton de Début | E3: N° de Carton de Fin | F3: Total
B4: Janvier | C4: 2556 | D4: 213 | E4: 217 | F4: =E4-D4 -> 4
B5: Février | C5: 3049 | D5: =E4 -> 217 | E5: 223 | F5: =E5-D5 -> 6
B6: Mars | C6: 138 | D6: 223 | E6: 223 | F6: =E6-D6 -> 0
B7: Avril | C7: 24 | D7: 223 | E7: 223 | F7: =E7-D7 -> 0
B8: Mai | C8: 0 | D8: 223 | E8: 223 | F8: =E8-D8 -> 0
B9: Juin | C9: 0 | D9: 223 | E9: 223 | F9: 0
B10: Juillet | C10: 17974 | D10: 223 | E10: 258 | F10: 35
B11: Août | C11: 38 | D11: 258 | E11: 258 | F11: 0
B12: Septembre | C12: 53 | D12: 258 | E12: 258 | F12: 0
B13: Octobre | C13: 2662 | D13: 258 | E13: 263 | F13: 5
B14: Novembre | C14: 466 | D14: 263 | E14: 264 | F14: 1
B15: Décembre | C15: 68 | D15: 264 | E15: 265 | F15: 1
B17: Total | C17: =SUM(C4:C15) -> 27028 | D17: =D4 -> 213 | E17: =E15 -> 265 | F17: =SUM(F4:F15) -> 52

Sheet 2011
G2: =MID(CELL("nomfichier",B1),FIND("]",CELL("nomfichier",B1))+1,LEN(CELL("nomfichier",B1))-FIND("]",CELL("nomfichier",B1))) -> 2011
B3: Mois | C3: Npai Flashé | D3: N° de Carton de Début | E3: N° de Carton de Fin | F3: Total
B4: Janvier | C4: 56 | D4: 140 | E4: 140 | F4: =E4-D4 -> 0
B5: Février | C5: 6406 | D5: =E4 -> 140 | E5: 151 | F5: =E5-D5 -> 11
B6: Mars | C6: 8819 | D6: 151 | E6: 166 | F6: =E6-D6 -> 15
B7: Avril | C7: 4118 | D7: 166 | E7: 173 | F7: =E7-D7 -> 7
B8: Mai | C8: 2807 | D8: 173 | E8: 179 | F8: =E8-D8 -> 6
B9: Juin | C9: 10674 | D9: 179 | E9: 199 | F9: 20
B10: Juillet | C10: 3102 | D10: 199 | E10: 205 | F10: 6
B11: Août | C11: 131 | D11: 205 | E11: 206 | F11: 1
B12: Septembre | C12: 46 | D12: 206 | E12: 206 | F12: 0
B13: Octobre | C13: 0 | D13: 206 | E13: 206 | F13: 0
B14: Novembre | C14: 2933 | D14: 206 | E14: 212 | F14: 6
B15: Décembre | C15: 112 | D15: 212 | E15: 212 | F15: 0
B17: Total | C17: =SUM(C4:C15) -> 39204 | D17: =D4 -> 140 | E17: =E15 -> 212 | F17: =SUM(F4:F15) -> 72

Sheet 2010
G2: =MID(CELL("nomfichier",B1),FIND("]",CELL("nomfichier",B1))+1,LEN(CELL("nomfichier",B1))-FIND("]",CELL("nomfichier",B1))) -> 2010
B3: Mois | C3: Npai Flashé | D3: N° de Carton de Début | E3: N° de Carton de Fin | F3: Total
B4: Janvier | C4: 9499 | D4: 54 | E4: 70 | F4: =E4-D4 -> 16
B5: Février | C5: 4085 | D5: =E4 -> 70 | E5: 76 | F5: =E5-D5 -> 6
B6: Mars | C6: 5368 | D6: 76 | E6: 82 | F6: =E6-D6 -> 6
B7: Avril | C7: 1676 | D7: 82 | E7: 84 | F7: =E7-D7 -> 2
B8: Mai | C8: 29716 | D8: 84 | E8: 88 | F8: =E8-D8 -> 4
B9: Juin | C9: 7351 | D9: 88 | E9: 101 | F9: 13
B10: Juillet | C10: 5724 | D10: 101 | E10: 112 | F10: 11
B11: Août | C11: 801 | D11: 112 | E11: 114 | F11: 2
B12: Septembre | C12: 102 | D12: 114 | E12: 114 | F12: 0
B13: Octobre | C13: 2452 | D13: 114 | E13: 118 | F13: 4
B14: Novembre | C14: 10443 | D14: 118 | E14: 137 | F14: 19
B15: Décembre | C15: 1342 | D15: 137 | E15: 140 | F15: 3
B17: Total | C17: =SUM(C4:C15) -> 78559 | D17: =D4 -> 54 | E17: =E15 -> 140 | F17: =SUM(F4:F15) -> 86

Sheet 2009
G2: =MID(CELL("nomfichier",B1),FIND("]",CELL("nomfichier",B1))+1,LEN(CELL("nomfichier",B1))-FIND("]",CELL("nomfichier",B1))) -> 2009
B3: Mois | C3: Npai Flashé | D3: N° de Carton de Début | E3: N° de Carton de Fin | F3: Total
B4: Janvier | C4: 718 | D4: 0 | E4: 0 | F4: =E4-D4 -> 0
B5: Février | C5: 3373 | D5: =E4 -> 0 | E5: 0 | F5: =E5-D5 -> 0
B6: Mars | C6: 674 | D6: 0 | E6: 0 | F6: =E6-D6 -> 0
B7: Avril | C7: 2266 | D7: 0 | E7: 4 | F7: =E7-D7 -> 4
B8: Mai | C8: 5147 | D8: 4 | E8: 11 | F8: =E8-D8 -> 7
B9: Juin | C9: 17127 | D9: 11 | E9: 40 | F9: 29
B10: Juillet | C10: 1680 | D10: 40 | E10: 44 | F10: 4
B11: Août | C11: 216 | D11: 44 | E11: 44 | F11: 0
B12: Septembre | C12: 42 | D12: 44 | E12: 44 | F12: 0
B13: Octobre | C13: 0 | D13: 44 | E13: 44 | F13: 0
B14: Novembre | C14: 658 | D14: 44 | E14: 46 | F14: 2
B15: Décembre | C15: 3571 | D15: 46 | E15: 53 | F15: 7
B17: Total | C17: =SUM(C4:C15) -> 35472 | D17: =D4 -> 0 | E17: =E15 -> 53 | F17: =SUM(F4:F15) -> 53

Sheet source
A1: =YEAR(TODAY()) -> 2022
A2: 2008
A3: 2009 | B3: ='2009'!$C$17 -> 35472
A4: 2010 | B4: ='2010'!$C$17 -> 78559
A5: 2011 | B5: ='2011'!$C$17 -> 39204 | D5: Mois | E5: NPAI FLASHER | F5: N°de Carton de Début | G5: N°de Carton de Fin | H5: Total | I5: Rang
A6: 2012 | B6: ='2012'!$C$17 -> 27028 | D6: Janvier | E6: =VLOOKUP(D6,INDIRECT("'"&'RÉCAPITULATIF DU REPORTING'!$E$3&"'!B4:C16"),2,FALSE) -> 8544 | F6: =VLOOKUP(D6,INDIRECT("'"&'RÉCAPITULATIF DU REPORTING'!$E$3&"'!B4:D16"),3,FALSE) -> 739 | G6: =VLOOKUP(D6,INDIRECT("'"&'RÉCAPITULATIF DU REPORTING'!$E$3&"'!B4:F16"),4,FALSE) -> 760 | H6: =G6-F6 -> 21 | I6: =IF(OR(E6=MAX($E$6:$E$17),E6=MIN($E$6:$E$17)),E6,NA()) -> 
A7: 2013 | B7: ='2013'!$C$17 -> 38274 | D7: Février | E7: =VLOOKUP(D7,INDIRECT("'"&'RÉCAPITULATIF DU REPORTING'!$E$3&"'!B4:C16"),2,FALSE) -> 10240 | F7: =VLOOKUP(D7,INDIRECT("'"&'RÉCAPITULATIF DU REPORTING'!$E$3&"'!B4:D16"),3,FALSE) -> 760 | G7: =VLOOKUP(D7,INDIRECT("'"&'RÉCAPITULATIF DU REPORTING'!$E$3&"'!B4:F16"),4,FALSE) -> 786 | H7: =G7-F7 -> 26 | I7: =IF(OR(E7=MAX($E$6:$E$17),E7=MIN($E$6:$E$17)),E7,NA()) -> 
A8: 2014 | B8: ='2014'!$C$17 -> 39102 | D8: Mars | E8: =VLOOKUP(D8,INDIRECT("'"&'RÉCAPITULATIF DU REPORTING'!$E$3&"'!B4:C16"),2,FALSE) -> 2002 | F8: =VLOOKUP(D8,INDIRECT("'"&'RÉCAPITULATIF DU REPORTING'!$E$3&"'!B4:D16"),3,FALSE) -> 786 | G8: =VLOOKUP(D8,INDIRECT("'"&'RÉCAPITULATIF DU REPORTING'!$E$3&"'!B4:F16"),4,FALSE) -> 792 | H8: =G8-F8 -> 6
A9: 2015 | B9: ='2015'!$C$17 -> 17230 | D9: Avril | E9: =VLOOKUP(D9,INDIRECT("'"&'RÉCAPITULATIF DU REPORTING'!$E$3&"'!B4:C16"),2,FALSE) -> 0 | F9: =VLOOKUP(D9,INDIRECT("'"&'RÉCAPITULATIF DU REPORTING'!$E$3&"'!B4:D16"),3,FALSE) -> 792 | G9: =VLOOKUP(D9,INDIRECT("'"&'RÉCAPITULATIF DU REPORTING'!$E$3&"'!B4:F16"),4,FALSE) -> 792 | H9: =G9-F9 -> 0 | I9: 0
A10: 2016 | B10: ='2016'!$C$17 -> 27488 | D10: Mai | E10: =VLOOKUP(D10,INDIRECT("'"&'RÉCAPITULATIF DU REPORTING'!$E$3&"'!B4:C16"),2,FALSE) -> 682 | F10: =VLOOKUP(D10,INDIRECT("'"&'RÉCAPITULATIF DU REPORTING'!$E$3&"'!B4:D16"),3,FALSE) -> 792 | G10: =VLOOKUP(D10,INDIRECT("'"&'RÉCAPITULATIF DU REPORTING'!$E$3&"'!B4:F16"),4,FALSE) -> 794 | H10: 2
A11: 2017 | B11: ='2017'!$C$17 -> 25565 | D11: Juin | E11: =VLOOKUP(D11,INDIRECT("'"&'RÉCAPITULATIF DU REPORTING'!$E$3&"'!B4:C16"),2,FALSE) -> 16069 | F11: =VLOOKUP(D11,INDIRECT("'"&'RÉCAPITULATIF DU REPORTING'!$E$3&"'!B4:D16"),3,FALSE) -> 794 | G11: =VLOOKUP(D11,INDIRECT("'"&'RÉCAPITULATIF DU REPORTING'!$E$3&"'!B4:F16"),4,FALSE) -> 837 | H11: 43 | I11: 16069
A12: 2018 | B12: ='2018'!$C$17 -> 44737 | D12: Juillet | E12: =VLOOKUP(D12,INDIRECT("'"&'RÉCAPITULATIF DU REPORTING'!$E$3&"'!B4:C16"),2,FALSE) -> 0 | F12: =VLOOKUP(D12,INDIRECT("'"&'RÉCAPITULATIF DU REPORTING'!$E$3&"'!B4:D16"),3,FALSE) -> 837 | G12: =VLOOKUP(D12,INDIRECT("'"&'RÉCAPITULATIF DU REPORTING'!$E$3&"'!B4:F16"),4,FALSE) -> 837 | H12: 0 | I12: 0
A13: 2019 | B13: ='2019'!$C$17 -> 45398 | D13: Août | E13: =VLOOKUP(D13,INDIRECT("'"&'RÉCAPITULATIF DU REPORTING'!$E$3&"'!B4:C16"),2,FALSE) -> 2 | F13: =VLOOKUP(D13,INDIRECT("'"&'RÉCAPITULATIF DU REPORTING'!$E$3&"'!B4:D16"),3,FALSE) -> 837 | G13: =VLOOKUP(D13,INDIRECT("'"&'RÉCAPITULATIF DU REPORTING'!$E$3&"'!B4:F16"),4,FALSE) -> 837 | H13: 0
A14: 2020 | B14: ='2020'!$C$17 -> 56085 | D14: Septembre | E14: =VLOOKUP(D14,INDIRECT("'"&'RÉCAPITULATIF DU REPORTING'!$E$3&"'!B4:C16"),2,FALSE) -> 0 | F14: =VLOOKUP(D14,INDIRECT("'"&'RÉCAPITULATIF DU REPORTING'!$E$3&"'!B4:D16"),3,FALSE) -> 837 | G14: =VLOOKUP(D14,INDIRECT("'"&'RÉCAPITULATIF DU REPORTING'!$E$3&"'!B4:F16"),4,FALSE) -> 837 | H14: 0 | I14: 0
A15: 2021 | B15: ='2021'!$C$17 -> 33022 | D15: Octobre | E15: =VLOOKUP(D15,INDIRECT("'"&'RÉCAPITULATIF DU REPORTING'!$E$3&"'!B4:C16"),2,FALSE) -> 1819 | F15: =VLOOKUP(D15,INDIRECT("'"&'RÉCAPITULATIF DU REPORTING'!$E$3&"'!B4:D16"),3,FALSE) -> 837 | G15: =VLOOKUP(D15,INDIRECT("'"&'RÉCAPITULATIF DU REPORTING'!$E$3&"'!B4:F16"),4,FALSE) -> 842 | H15: 5
A16: 2022 | B16: ='2022'!$C$17 -> 24472 | D16: Novembre | E16: =VLOOKUP(D16,INDIRECT("'"&'RÉCAPITULATIF DU REPORTING'!$E$3&"'!B4:C16"),2,FALSE) -> 10264 | F16: =VLOOKUP(D16,INDIRECT("'"&'RÉCAPITULATIF DU REPORTING'!$E$3&"'!B4:D16"),3,FALSE) -> 842 | G16: =VLOOKUP(D16,INDIRECT("'"&'RÉCAPITULATIF DU REPORTING'!$E$3&"'!B4:F16"),4,FALSE) -> 865 | H16: 23
A17: 2023 | D17: Décembre | E17: =VLOOKUP(D17,INDIRECT("'"&'RÉCAPITULATIF DU REPORTING'!$E$3&"'!B4:C16"),2,FALSE) -> 6463 | F17: =VLOOKUP(D17,INDIRECT("'"&'RÉCAPITULATIF DU REPORTING'!$E$3&"'!B4:D16"),3,FALSE) -> 865 | G17: =VLOOKUP(D17,INDIRECT("'"&'RÉCAPITULATIF DU REPORTING'!$E$3&"'!B4:F16"),4,FALSE) -> 879 | H17: 14
A18: 2024
D19: Total | E19: =SUM(E6:E17) -> 56085 | F19: =SUM(F6:F17) -> 9718 | H19: =SUM(H6:H17) -> 140
A20: total | B20: =SUM(B3:B18) -> 531636
A21: moyenne | B21: =B20/14 -> 37974
A24: =YEAR(TODAY()) -> 2022

Sheet DonnéesDeGraphique (hidden)
A1: Cette feuille doit rester masquée.
A2: Étiquettes de graphique
A3: =RéceptionEmployeeAnnée&": "&TEXT(FondsUtilisés,"# ##0,00 €")&" ("&TEXT(FondsUtilisés/SUM(FondsUtilisés:FondsRestants),"0%")&")" -> 
A4: =TotalAnnée&": "&TEXT(FondsRestants,"# ##0,00 €")&" ("&TEXT(FondsRestants/SUM(FondsUtilisés:FondsRestants),"0%")&")" -> 
